bitfinex/quotes_ETHUSD_20220226
["timestamp","ask_amount","ask_price","bid_price","bid_amount"]
[1645894696080,0.00499087,2794.8,2794.2,1.51231817]
[1645894696684,0.89516,2795.1,2794.2,2.91939301]
[1645894696685,1.19516,2795.1,2794.2,2.91939301]
[1645894696884,0.0049908,2794.8,2794.3,1.51231817]
[1645894697987,0.8952041,2795.0,2794.4,1.51231817]
[1645894698192,0.00499084,2794.8,2794.5,1.51231817]
[1645894698388,0.00499084,2794.8,2794.1,1.18289209]
[1645894698584,0.00499084,2794.8,2794.2,1.51230234]
[1645894699030,2.63857194,2795.0,2794.2,1.51230234]
[1645894699229,0.89525,2794.8,2794.3,1.51243004]
[1645894699428,4.65028824,2794.7,2794.1,0.00499205]
[1645894699628,6.51937179,2794.7,2794.1,0.00499205]
[1645894699829,0.3,2794.6,2794.1,0.00499205]
[1645894700230,0.3,2794.6,2794.0,50.0]
[1645894700427,0.8954,2794.4,2794.0,50.0]
[1645894700627,0.8954,2794.4,2794.1,0.00499194]
[1645894700842,2.0908213,2794.4,2794.1,0.00499194]
[1645894701034,0.23292827,2794.2,2794.1,0.00499194]
[1645894701232,2.03282827,2794.2,2794.1,0.00499194]
[1645894701635,2.03282827,2794.2,2794.0,50.0]
[1645894701834,2.03282827,2794.2,2794.0,50.00499196]
[1645894702232,3.38591182,2794.2,2794.0,50.00499196]
[1645894702571,2.92841487,2794.2,2794.0,50.00499196]
[1645894702772,3.92841487,2794.2,2794.0,50.0]
[1645894702976,3.22841487,2794.2,2794.0,50.00499202]
[1645894703175,3.24451487,2794.2,2794.0,50.00499202]
[1645894703578,2.24451487,2794.2,2794.0,50.00499202]
[1645894703776,3.24451487,2794.2,2794.0,50.00499202]
[1645894703977,3.14003487,2794.2,2794.0,50.0]
[1645894704177,4.14003487,2794.2,2794.0,50.00499202]
[1645894704380,3.14003487,2794.2,2794.0,50.00499202]
[1645894704582,4.66732451,2794.2,2794.0,50.00499202]
[1645894704778,3.9071066,2794.2,2794.0,50.00499202]
[1645894704980,3.0115866,2794.2,2794.0,50.00499202]
[1645894705177,2.116,2794.2,2794.0,50.0]
[1645894705380,2.116,2794.2,2794.0,50.00499202]
[1645894705579,1.816,2794.2,2794.0,50.00499202]
[1645894705783,0.816,2794.2,2794.0,50.00499202]
[1645894706094,1.79085,2794.6,2794.0,50.00499202]
[1645894706095,1.6437461,2794.7,2794.0,50.00499202]
[1645894706350,2.0,2794.7,2794.1,3.75494574]
[1645894707544,2.3,2794.7,2794.0,50.0]
[1645894707745,2.3,2794.7,2794.1,0.00481863]
[1645894707941,2.3,2794.7,2794.1,3.75976437]
[1645894708753,2.3,2794.7,2794.1,3.75494574]
[1645894708941,2.3,2794.7,2794.1,3.75822843]
[1645894709942,2.3,2794.7,2794.1,3.7534098]
[1645894710170,2.3,2794.7,2794.1,3.75806682]
[1645894710569,3.19529,2794.7,2794.1,0.00465702]
[1645894710969,3.19529,2794.7,2794.1,3.75960276]
[1645894711170,3.19529,2794.7,2794.1,3.75494574]
[1645894711379,3.19529,2794.7,2794.1,3.75960276]
[1645894712274,3.19529,2794.7,2794.1,3.75494574]
[1645894712675,3.19529,2794.7,2794.1,0.00465702]
[1645894713277,3.19529,2794.7,2794.1,3.75960276]
[1645894713479,3.19529,2794.7,2794.1,3.75494574]
[1645894713934,3.19529,2794.7,2794.1,3.75961367]
[1645894714131,2.3,2794.7,2794.1,3.75961367]
[1645894714329,2.29862784,2794.7,2794.1,3.75961367]
[1645894714728,2.29862784,2794.7,2794.1,3.75494574]
[1645894714929,2.29862784,2794.7,2794.1,3.75961367]
[1645894715932,2.29862784,2794.7,2794.1,3.75494574]
[1645894716132,2.29862784,2794.7,2794.1,3.75961367]
[1645894716331,2.29862784,2794.7,2794.1,0.00466793]
[1645894716735,3.19392784,2794.7,2794.1,0.00466793]
[1645894717138,3.19392784,2794.7,2794.0,50.0]
[1645894717335,3.19392784,2794.7,2794.1,0.0046672]
[1645894718375,0.8953585,2794.6,2794.0,50.0]
[1645894718576,0.89542,2794.4,2794.1,0.0046672]
[1645894718777,1.19542,2794.4,2794.1,0.0046672]
[1645894719575,1.19542,2794.4,2794.0,50.0]
[1645894719776,2.09085,2794.4,2794.1,0.00466709]
[1645894719974,2.9862969,2794.4,2794.1,0.00466709]
[1645894720183,3.2862969,2794.4,2794.1,0.00466709]
[1645894720576,0.19353151,2794.3,2794.1,0.00466709]
[1645894720777,0.19353151,2794.3,2794.0,50.0]
[1645894720778,5.41785381,2794.3,2794.0,50.0]
[1645894720979,5.41785381,2794.3,2794.1,0.00466709]
[1645894720980,6.41785381,2794.3,2794.1,0.00466709]
[1645894721176,2.18203359,2794.2,2794.1,0.00466709]
[1645894721433,3.29803359,2794.2,2794.1,0.00466709]
[1645894721739,4.11795251,2794.2,2794.1,0.00466709]
[1645894721930,4.11795251,2794.2,2794.0,50.0]
[1645894722134,0.89555,2794.1,2794.0,50.0]
[1645894722334,0.89555,2794.1,2794.0,50.00466723]
[1645894723232,0.89555,2794.1,2794.0,50.0]
[1645894724033,1.41155,2794.1,2794.0,50.0]
[1645894727081,0.516,2794.1,2794.0,50.0]
[1645894727282,1.4955378,2794.2,2794.0,50.0]
[1645894727483,1.4955378,2794.2,2794.1,3.75494574]
[1645894727484,0.6,2794.2,2794.1,3.75494574]
[1645894727683,0.3,2794.2,2794.0,50.0]
[1645894727882,2.0,2794.4,2794.0,50.0]
[1645894728083,2.3,2794.4,2794.0,50.0]
[1645894728282,2.3,2794.4,2794.0,50.00466724]
[1645894729132,2.3,2794.4,2794.0,50.0]
[1645894729332,2.3,2794.4,2794.1,0.00466719]
[1645894729537,2.0,2794.4,2794.1,3.75961293]
[1645894729832,0.3,2794.5,2794.1,3.75961293]
[1645894730033,0.00466595,2794.8,2794.1,3.75961293]
[1645894730434,1.35308355,2795.0,2794.1,3.75494574]
[1645894730734,0.00466613,2794.8,2794.1,3.75961304]
[1645894730936,0.00466613,2794.8,2794.1,4.11781304]
[1645894731138,0.00466613,2794.8,2794.3,0.3582]
[1645894731334,0.00466613,2794.8,2794.5,0.3582]
[1645894731541,1.35648591,2795.3,2794.5,4.11314574]
[1645894731740,1.65648591,2795.3,2794.1,3.75494574]
[1645894731961,0.00466621,2794.8,2794.2,1.51225559]
[1645894732146,0.00466621,2794.8,2794.4,1.31761902]
[1645894732340,0.00466621,2794.8,2794.5,3.75494574]
[1645894732788,1.35648591,2795.3,2794.5,3.75494574]
[1645894733186,0.00466626,2794.8,2794.5,3.75494574]
[1645894733587,0.00466626,2794.8,2794.1,3.75961317]
[1645894733791,0.00466626,2794.8,2794.2,1.51221109]
[1645894733990,1.35648591,2795.3,2794.3,3.75494574]
[1645894734191,0.00466611,2794.8,2794.3,3.75494574]
[1645894734393,0.00466611,2794.8,2794.1,3.75961302]
[1645894734995,0.00466611,2794.8,2794.1,3.90271302]
[1645894735195,1.00340236,2795.1,2794.1,3.75494574]
[1645894735397,0.00466611,2794.8,2794.1,3.75961302]
[1645894735794,0.50466611,2794.8,2794.1,4.11781302]
[1645894735995,0.50466611,2794.8,2794.2,1.28209311]
[1645894735996,0.00466611,2794.8,2794.2,1.28209311]
[1645894736196,0.00466611,2794.8,2794.3,3.75494574]
[1645894736436,0.3,2795.0,2794.3,3.75494574]
[1645894736640,0.00340236,2795.1,2794.3,3.75494574]
[1645894736641,0.00466614,2794.8,2794.3,3.75494574]
[1645894736836,0.00466614,2794.8,2794.1,3.75961305]
[1645894737639,1.65648591,2795.2,2794.1,3.75494574]
[1645894737840,0.00466611,2794.8,2794.1,3.75961301]
[1645894738745,0.00340236,2795.0,2794.1,3.75494574]
[1645894738939,0.00340236,2795.0,2794.1,3.75387987]
[1645894739142,0.00466611,2794.8,2794.1,3.75854714]
[1645894740086,0.00340236,2795.0,2794.1,3.75387987]
[1645894740283,3.14315838,2795.4,2794.2,1.87051981]
[1645894740284,0.00466611,2794.8,2794.2,1.87051981]
[1645894740481,0.00466611,2794.8,2794.3,5.41036555]
[1645894740680,0.00466611,2794.8,2794.3,3.89804574]
[1645894740882,0.00466611,2794.8,2794.3,3.75494574]
[1645894741283,1.35648591,2795.3,2794.4,1.13977106]
[1645894741487,0.00466618,2794.8,2794.2,3.89804574]
[1645894741685,0.00466618,2794.8,2794.3,1.51224479]
[1645894741886,0.00466618,2794.8,2794.4,3.75494574]
[1645894742487,1.65648591,2795.3,2794.2,1.7356631]
[1645894742695,0.00466622,2794.8,2794.3,1.51224779]
[1645894743585,1.65648591,2795.3,2794.3,1.51224779]
[1645894743857,0.00466618,2794.8,2794.3,1.51224779]
[1645894744038,0.00466618,2794.8,2794.1,0.00848382]
[1645894744441,0.00466618,2794.8,2794.1,0.00466735]
[1645894744843,6.40802929,2794.9,2794.0,50.0]
[1645894745246,0.0046661,2794.8,2794.1,0.00466727]
[1645894745442,1.03807018,2794.6,2794.1,0.00466727]
[1645894745842,1.28807018,2794.6,2794.1,0.00466727]
[1645894746041,1.28807018,2794.6,2794.0,50.0]
[1645894746240,0.25,2794.6,2794.0,50.0]
[1645894746448,0.25,2794.6,2794.1,0.0046672]
[1645894747147,2.9361479,2794.6,2794.0,50.0]
[1645894747344,3.2361479,2794.6,2794.0,50.0]
[1645894747577,4.7521479,2794.6,2794.1,0.00482473]
[1645894747980,6.5430479,2794.6,2794.1,0.00482473]
[1645894748379,7.89613145,2794.6,2794.0,50.0]
[1645894748781,8.15026026,2794.6,2794.1,0.00482473]
[1645894749584,8.15026026,2794.6,2794.0,50.0]
[1645894749585,0.89543,2794.4,2794.0,50.0]
[1645894749782,2.986331,2794.4,2794.0,50.0]
[1645894749984,0.89547,2794.3,2794.1,0.00482473]
[1645894750393,3.286331,2794.4,2794.1,0.00482473]
[1645894750394,1.49543,2794.4,2794.1,0.00482473]
[1645894750585,0.6,2794.4,2794.1,0.00482473]
[1645894750786,0.3,2794.4,2794.0,50.0]
[1645894750988,2.54838355,2794.7,2794.0,50.0]
[1645894751188,0.3,2794.7,2794.1,0.00491902]
[1645894751736,0.30491779,2794.8,2794.1,0.00491902]
[1645894751932,3.65648591,2795.0,2794.0,50.0]
[1645894752132,0.3,2794.8,2794.1,0.00381647]
[1645894752334,0.0049179,2794.8,2794.1,0.00491913]
[1645894753134,3.65648591,2795.0,2794.0,50.0]
[1645894753337,3.65648591,2795.0,2794.1,0.00381647]
[1645894753537,0.00491794,2794.8,2794.1,0.00873564]
[1645894753739,0.90017794,2794.8,2794.1,0.00491917]
[1645894754137,1.20017794,2794.8,2794.1,0.00491917]
[1645894754339,1.19526,2794.8,2794.0,50.0]
[1645894754638,1.20025076,2794.8,2794.1,0.00499201]
[1645894755683,1.19526,2794.8,2794.0,50.0]
[1645894755887,1.20025076,2794.8,2794.1,0.00499201]
[1645894756785,1.14526,2794.8,2794.0,50.0]
[1645894757186,1.15025076,2794.8,2794.1,0.00499201]
[1645894758091,1.14526,2794.8,2794.0,50.0]
[1645894758285,1.15025076,2794.8,2794.1,0.00499201]
[1645894758932,1.14936269,2794.8,2794.1,0.00499201]
[1645894759137,2.49745548,2794.8,2794.0,50.0]
[1645894759335,1.14437193,2794.8,2794.0,50.0]
[1645894759537,1.14936269,2794.8,2794.1,0.00499201]
[1645894760439,1.14437193,2794.8,2794.0,50.0]
[1645894760644,1.14936269,2794.8,2794.1,1.51736742]
[1645894760837,1.14936269,2794.8,2794.1,0.00499201]
[1645894761638,1.14437193,2794.8,2794.0,50.0]
[1645894761840,1.14936269,2794.8,2794.1,0.00499201]
[1645894762907,1.14437193,2794.8,2794.0,50.0]
[1645894763105,1.14936269,2794.8,2794.1,0.00499201]
[1645894764009,1.14437193,2794.8,2794.0,50.0]
[1645894764207,1.14437193,2794.8,2794.1,0.00499201]
[1645894764407,1.14936269,2794.8,2794.1,0.00499201]
[1645894766443,1.14437193,2794.8,2794.0,50.0]
[1645894766641,1.14437193,2794.8,2794.1,1.51239547]
[1645894766839,1.14904686,2794.8,2794.1,1.51707157]
[1645894767044,1.14904686,2794.8,2794.1,0.0046761]
[1645894767645,1.14437193,2794.8,2794.0,50.0]
[1645894768045,1.14904686,2794.8,2794.1,0.0046761]
[1645894768946,1.14437193,2794.8,2794.0,50.0]
[1645894769147,1.14437193,2794.8,2794.1,1.51692017]
[1645894769148,1.14890661,2794.8,2794.1,1.51692017]
[1645894769346,1.14890661,2794.8,2794.1,0.00453582]
[1645894769549,1.14890661,2794.8,2794.2,1.51237062]
[1645894770183,0.24911193,2794.8,2794.2,1.51237062]
[1645894770382,0.24911193,2794.8,2794.1,0.00381647]
[1645894770383,0.00485055,2794.8,2794.1,0.00866823]
[1645894770599,0.00485055,2794.8,2794.2,1.51237685]
[1645894771191,5.55171431,2795.0,2794.2,1.51237685]
[1645894771388,5.55171431,2795.0,2794.3,1.51237685]
[1645894771592,0.00485055,2794.8,2794.1,0.00866823]
[1645894771787,0.00485055,2794.8,2794.2,1.5123416]
[1645894772589,5.54831195,2795.0,2794.2,1.5123416]
[1645894772793,0.0046636,2794.8,2794.3,1.5123416]
[1645894772993,0.0046636,2794.8,2794.1,0.00848124]
[1645894773193,0.0046636,2794.8,2794.2,1.51235399]
[1645894773598,5.54831195,2795.0,2794.2,1.51235399]
[1645894773844,0.0046636,2794.8,2794.3,1.51235399]
[1645894774032,0.0046636,2794.8,2794.2,1.51235399]
[1645894774633,0.0046636,2794.8,2794.3,1.5123611]
[1645894774838,5.54831195,2795.0,2794.0,50.0]
[1645894775139,0.0046636,2794.8,2794.1,1.52083527]
[1645894775337,0.0046636,2794.8,2794.2,1.51235403]
[1645894776147,5.54831195,2795.0,2794.2,1.51235403]
[1645894776339,0.00467649,2794.8,2794.2,1.51235403]
[1645894776543,0.00467649,2794.8,2794.3,1.51235403]
[1645894776742,0.00467649,2794.8,2794.1,0.00849413]
[1645894776943,0.00467649,2794.8,2794.2,1.51232629]
[1645894777343,5.54831195,2795.0,2794.2,1.51232629]
[1645894777588,0.00467649,2794.8,2794.3,1.51232629]
[1645894777788,0.00467649,2794.8,2794.1,0.00849413]
[1645894778088,0.00467649,2794.8,2794.2,1.51231851]
[1645894778494,0.3,2794.9,2794.2,1.51231851]
[1645894778696,0.00467649,2794.8,2794.3,1.51231851]
[1645894778989,0.00467649,2794.8,2794.1,0.00849413]
[1645894779291,0.00467649,2794.8,2794.2,1.51233593]
[1645894779790,1.35308355,2794.9,2794.2,1.51233593]
[1645894779791,1.65308355,2794.9,2794.2,1.51233593]
[1645894779992,0.0046754,2794.8,2794.1,1.52082897]
[1645894780191,0.0046754,2794.8,2794.2,1.51233593]
[1645894781000,1.65308355,2794.9,2794.1,1.5161524]
[1645894781202,0.0046754,2794.8,2794.2,1.51233593]
[1645894781832,0.8999354,2794.8,2794.2,1.51233593]
[1645894782033,1.35308355,2794.7,2794.1,0.00381647]
[1645894782236,3.75494574,2794.6,2794.1,1.51248446]
[1645894782431,3.75494574,2794.6,2794.1,0.00467657]
[1645894782432,1.86908355,2794.5,2794.1,0.00467657]
[1645894782632,2.38731403,2794.5,2794.1,0.00467657]
[1645894782830,2.56739511,2794.5,2794.1,0.00467657]
[1645894783234,3.14399585,2794.4,2794.0,50.0]
[1645894783431,0.516,2794.3,2794.0,50.0]
[1645894783633,0.516,2794.3,2794.0,49.99884329]
[1645894787186,0.516,2794.3,2794.0,50.00383206]
[1645894788185,0.516,2794.3,2794.0,49.99884329]
[1645894788383,0.516,2794.3,2794.0,50.00383206]
[1645894789247,0.516,2794.3,2794.0,49.99884329]
[1645894789442,0.516,2794.3,2794.0,50.00383206]
[1645894790443,0.516,2794.3,2794.0,49.99884329]
[1645894790842,0.516,2794.3,2794.0,50.00383206]
[1645894791744,0.516,2794.3,2794.0,49.99884329]
[1645894791951,0.516,2794.3,2794.0,50.00383206]
[1645894792982,0.516,2794.3,2794.0,49.99884329]
[1645894793182,0.516,2794.3,2794.0,50.00383206]
[1645894794184,0.516,2794.3,2794.0,49.99884329]
[1645894794384,0.516,2794.3,2794.0,50.00383206]
[1645894795290,0.516,2794.3,2794.0,49.99884329]
[1645894795590,0.516,2794.3,2794.0,50.00383206]
[1645894796440,0.516,2794.3,2794.0,49.99884329]
[1645894797042,4.27094574,2794.3,2794.0,50.00383206]
[1645894797245,5.27094574,2794.3,2794.0,50.00383206]
[1645894797643,1.516,2794.3,2794.0,49.99884329]
[1645894797840,0.516,2794.3,2794.0,49.99884329]
[1645894798040,0.516,2794.3,2794.0,50.00383206]
[1645894798841,0.516,2794.3,2794.0,49.99884329]
[1645894799243,0.516,2794.3,2794.0,50.00383206]
[1645894800182,0.42286,2794.3,2794.0,49.99884329]
[1645894800383,0.42286,2794.3,2794.0,50.00383206]
[1645894800585,1.77594355,2794.3,2794.0,50.00383206]
[1645894800794,0.42286,2794.3,2794.0,50.00383206]
[1645894801392,0.42286,2794.3,2794.0,49.99884329]
[1645894801393,5.53088929,2794.3,2794.0,49.99884329]
[1645894801593,7.32203929,2794.3,2794.0,50.00383206]
[1645894801795,0.19776898,2794.1,2794.0,50.00383206]
[1645894801996,0.19776898,2794.1,2793.6,0.02377454]
[1645894801997,1.17784268,2794.0,2793.0,37.19227665]
[1645894802203,5.0,2793.5,2793.0,37.19227665]
[1645894802408,2.0,2793.2,2793.0,35.88332831]
[1645894802604,2.0,2793.2,2793.0,34.75571826]
[1645894802605,0.516,2793.1,2793.0,34.75571826]
[1645894802793,1.71965488,2793.1,2793.0,34.75571826]
[1645894802992,1.71965488,2793.1,2793.0,33.69713182]
[1645894802993,4.47437193,2793.1,2793.0,33.69713182]
[1645894803193,8.57452046,2793.1,2793.0,33.69713182]
[1645894803594,12.69371489,2793.1,2793.0,33.69713182]
[1645894803832,8.93876915,2793.1,2793.0,33.69713182]
[1645894804235,8.93876915,2793.1,2793.0,33.79593068]
[1645894804535,13.46392305,2793.1,2793.0,33.79593068]
[1645894805733,12.70445223,2793.1,2793.0,33.79593068]
[1645894806134,13.7861864,2793.1,2793.0,33.79593068]
[1645894806538,12.88453331,2793.1,2793.0,33.79593068]
[1645894807340,13.7861864,2793.1,2793.0,33.79593068]
[1645894807586,12.74143331,2793.1,2793.0,33.79593068]
[1645894807792,12.74143331,2793.1,2793.0,33.62984456]
[1645894808192,12.74143331,2793.1,2793.0,20.10836758]
[1645894808193,23.15637168,2793.1,2793.0,20.10836758]
[1645894808396,23.15637168,2793.1,2793.0,14.73098758]
[1645894808397,22.25471859,2793.1,2793.0,14.73098758]
[1645894808596,23.2646313,2793.1,2793.0,14.20098758]
[1645894808796,7.00991271,2793.0,2792.9,0.00464861]
[1645894808997,21.68341112,2793.0,2792.9,0.00464861]
[1645894809196,29.88614941,2793.0,2792.9,0.00464861]
[1645894809396,35.18614941,2793.0,2792.9,0.00464861]
[1645894809796,1.00991271,2792.8,2792.5,0.0037993]
[1645894809999,1.00991271,2792.6,2792.4,5.92319794]
[1645894810299,1.52591271,2792.5,2792.4,5.92319794]
[1645894810895,1.52591271,2792.5,2792.4,5.90460032]
[1645894812537,1.52477508,2792.5,2792.4,5.90460032]
[1645894813644,1.00877508,2792.5,2792.4,5.90460032]
[1645894813841,1.00877508,2792.5,2792.4,6.26280032]
[1645894814241,0.88656144,2793.1,2792.4,6.26280032]
[1645894814443,2.0,2793.0,2792.6,1.14461598]
[1645894814639,2.0,2793.0,2792.8,2.95230016]
[1645894814840,2.0,2793.0,2792.8,5.90460032]
[1645894815894,2.0,2793.0,2792.8,5.90926171]
[1645894816496,2.3,2793.0,2792.8,5.90926171]
[1645894816898,2.3,2793.0,2792.8,5.90460032]
[1645894817099,2.3,2793.0,2792.8,5.90926171]
[1645894818108,2.3,2793.0,2792.8,5.90460032]
[1645894818500,2.3,2793.0,2792.8,5.90926171]
[1645894818948,3.94562374,2792.9,2792.8,5.90926171]
[1645894819148,4.46162374,2792.9,2792.8,5.90926171]
[1645894819348,10.48518552,2792.9,2792.8,5.90460032]
[1645894819548,11.87123419,2792.9,2792.8,5.90460032]
[1645894819950,8.10569153,2792.9,2792.8,5.90460032]
[1645894820758,11.87123419,2792.9,2792.8,5.90460032]
[1645894821351,8.10569153,2792.9,2792.8,5.90460032]
[1645894821552,1.69608108,2792.9,2792.8,5.90460032]
[1645894821751,0.69608108,2792.9,2792.8,5.90460032]
[1645894823995,4.46162374,2792.9,2792.8,5.90460032]
[1645894824194,1.69608108,2792.9,2792.8,5.90460032]
[1645894824591,0.69608108,2792.9,2792.8,5.90460032]
[1645894827840,3.6,2793.0,2792.8,5.90460032]
[1645894828237,2.3,2793.0,2792.7,0.00466265]
[1645894828438,2.3,2793.0,2792.8,5.90460032]
[1645894829342,2.3,2793.0,2792.8,5.90926293]
[1645894829537,0.516,2792.9,2792.8,5.90926293]
[1645894829943,0.69608108,2792.9,2792.8,5.90926293]
[1645894830205,9.81517426,2792.9,2792.8,3.90561513]
[1645894830598,9.91352117,2792.9,2792.8,3.90561513]
[1645894831000,13.68022307,2792.9,2792.8,3.90561513]
[1645894831212,14.05905428,2792.9,2792.8,3.90561513]
[1645894832004,11.19400547,2792.9,2792.8,3.90561513]
[1645894832303,10.81517426,2792.9,2792.8,3.90561513]
[1645894832602,9.91352117,2792.9,2792.8,3.90561513]
[1645894833602,9.91352117,2792.9,2792.8,2.95230016]
[1645894833842,9.91352117,2792.9,2792.8,3.90561513]
[1645894834243,10.29235238,2792.9,2792.8,3.90561513]
[1645894834543,14.05905428,2792.9,2792.8,3.90561513]
[1645894835347,4.07491229,2792.9,2792.8,3.90561513]
[1645894835548,3.18008108,2792.9,2792.8,3.90561513]
[1645894835749,2.0,2792.9,2792.8,3.90561513]
[1645894835947,3.0,2792.9,2792.8,3.90561513]
[1645894836548,3.3,2792.9,2792.8,3.90561513]
[1645894837150,0.32901336,2793.1,2792.8,3.90561513]
[1645894837349,2.32901336,2793.1,2792.8,3.90561513]
[1645894837590,2.32901336,2793.1,2792.8,0.95331497]
[1645894837782,2.32901336,2793.1,2793.0,2.95230016]
[1645894838388,2.55283512,2793.1,2793.0,2.95230016]
[1645894838790,3.7329162,2793.1,2793.0,2.95230016]
[1645894838999,2.7329162,2793.1,2793.0,2.95230016]
[1645894839189,3.7329162,2793.1,2793.0,3.90561513]
[1645894839390,3.55656543,2793.1,2793.0,3.90561513]
[1645894839591,4.55656543,2793.1,2793.0,3.90561513]
[1645894839791,5.96845543,2793.1,2793.0,3.90561513]
[1645894839990,5.06862796,2793.1,2793.0,3.90561513]
[1645894840492,5.89424588,2793.1,2793.0,3.90561513]
[1645894840890,4.99244972,2793.1,2793.0,3.90561513]
[1645894841329,6.3489266,2793.1,2793.0,3.90561513]
[1645894841537,6.32380694,2793.1,2793.0,3.90561513]
[1645894842436,6.32204182,2793.1,2793.0,3.90561513]
[1645894842634,6.29692216,2793.1,2793.0,3.90561513]
[1645894843336,6.52166981,2793.1,2793.0,3.90561513]
[1645894844144,5.16695805,2793.1,2793.0,3.90561513]
[1645894844535,5.16695805,2793.1,2793.0,2.85288932]
[1645894844536,11.9491904,2793.1,2793.0,2.85288932]
[1645894844737,11.9491904,2793.1,2793.0,1.9916292]
[1645894844738,16.55144884,2793.1,2793.0,1.9916292]
[1645894844936,16.55144884,2793.1,2793.0,0.48446268]
[1645894844937,16.69454884,2793.1,2793.0,0.48446268]
[1645894845197,1.05133153,2792.5,2792.3,0.0037993]
[1645894845391,1.87232519,2792.4,2791.8,0.0037993]
[1645894845589,0.90402577,2792.0,2791.6,3.1174]
[1645894845792,0.3,2792.0,2791.6,3.1174]
[1645894846389,1.72002577,2792.1,2791.6,3.1174]
[1645894846592,0.816,2792.1,2791.6,3.0174]
[1645894846793,1.89232108,2792.1,2791.6,3.0174]
[1645894846992,1.89232108,2792.1,2791.4,0.0037993]
[1645894847192,1.89232108,2792.1,2791.7,0.00463807]
[1645894847593,0.89625,2792.0,2791.7,0.00463807]
[1645894847792,1.7123142,2791.9,2791.7,0.00463807]
[1645894847995,0.89631,2791.8,2791.7,0.00463807]
[1645894848192,0.21124735,2791.7,2791.0,0.0037993]
[1645894848393,0.516,2791.6,2791.2,0.01855526]
[1645894848592,1.41241,2791.6,2791.2,0.01855526]
[1645894848832,1.71241,2791.6,2791.2,0.01855526]
[1645894849237,0.89641,2791.5,2791.2,0.01855526]
[1645894849443,1.71241,2791.6,2790.8,0.0037993]
[1645894849640,3.01241,2791.6,2791.3,0.00463848]
[1645894850040,2.71241,2791.6,2791.3,0.00463848]
[1645894850239,2.71241,2791.6,2791.4,1.03831423]
[1645894850638,2.24905696,2791.6,2791.4,1.03831423]
[1645894850838,3.24905696,2791.6,2791.4,1.03831423]
[1645894851042,2.24905696,2791.6,2791.4,1.03831423]
[1645894852053,2.24905696,2791.6,2791.4,1.04297199]
[1645894852889,2.24905696,2791.6,2791.4,1.03831423]
[1645894853290,2.24905696,2791.6,2791.4,1.04297199]
[1645894854094,2.24905696,2791.6,2791.4,1.03831423]
[1645894854495,2.24905696,2791.6,2791.4,1.04297199]
[1645894855302,2.24905696,2791.6,2790.8,0.0037993]
[1645894855495,2.24905696,2791.6,2791.2,1.03831423]
[1645894855696,2.24905696,2791.6,2791.4,0.00465645]
[1645894856543,2.24905696,2791.6,2791.2,1.03831423]
[1645894856544,5.93258552,2791.6,2791.2,1.03831423]
[1645894856745,3.24905696,2791.6,2791.2,1.03831423]
[1645894857143,5.93258552,2791.6,2791.2,1.03831423]
[1645894857352,3.24905696,2791.6,2791.2,1.03831423]
[1645894857947,1.816,2791.6,2791.2,1.03831423]
[1645894858150,0.3,2791.6,2791.2,1.39651423]
[1645894858548,0.3,2791.8,2791.2,1.39651423]
[1645894858752,3.0,2791.9,2791.2,1.39651423]
[1645894858753,2.3,2791.9,2791.2,1.39651423]
[1645894858950,2.3,2791.9,2791.4,0.3582]
[1645894858951,2.0,2791.9,2791.4,0.3582]
[1645894859248,2.0,2791.9,2791.4,0.3631767]
[1645894860095,2.3,2791.9,2791.4,0.3582]
[1645894860601,2.3,2791.9,2791.5,0.00497655]
[1645894860802,2.3,2791.9,2791.6,1.03831423]
[1645894861005,0.3,2791.9,2791.6,1.03831423]
[1645894861201,0.3,2792.1,2791.6,1.03831423]
[1645894861603,0.3,2792.1,2791.6,1.04329067]
[1645894861804,0.57795478,2792.2,2791.6,1.04329067]
[1645894862005,0.27795478,2792.2,2791.6,1.04329067]
[1645894862203,1.18198055,2792.2,2791.6,1.04329067]
[1645894862411,1.32508055,2792.2,2791.6,0.99329067]
[1645894862607,1.32508055,2792.2,2791.6,0.98831423]
[1645894862805,0.90402577,2792.1,2791.8,0.00497629]
[1645894863006,0.3,2792.1,2791.8,0.00497629]
[1645894863209,1.20402577,2792.1,2791.8,0.00497629]
[1645894863606,2.10021577,2792.1,2791.8,0.00497629]
[1645894863855,2.10021577,2792.1,2791.6,0.98831423]
[1645894864043,2.10021577,2792.1,2791.8,0.00497624]
[1645894864245,1.85512277,2792.1,2791.8,0.00497624]
[1645894865053,1.85512277,2792.1,2791.6,0.98831423]
[1645894865250,1.85512277,2792.1,2791.8,0.00497624]
[1645894865549,0.90402577,2792.0,2791.8,0.00497624]
[1645894866152,1.04712577,2792.0,2791.9,0.98831423]
[1645894866552,0.1431,2792.0,2791.9,0.98831423]
[1645894867355,3.89444277,2792.1,2791.9,0.98831423]
[1645894867793,4.19444277,2792.1,2791.9,0.98831423]
[1645894868190,3.89444277,2792.1,2791.9,0.98831423]
[1645894868792,3.89444277,2792.1,2791.9,0.99329042]
[1645894868993,3.75134277,2792.1,2791.9,0.99329042]
[1645894869194,7.91964475,2792.1,2791.9,0.99329042]
[1645894869394,4.46427253,2792.1,2791.9,0.99329042]
[1645894869597,0.90402577,2792.0,2791.9,0.99329042]
[1645894869796,1.42002577,2792.0,2791.9,0.98831423]
[1645894869997,0.516,2792.0,2791.9,0.99329042]
[1645894870797,1.42002577,2792.0,2791.9,0.99329042]
[1645894870998,0.516,2792.0,2791.9,0.98831423]
[1645894871545,1.42002577,2792.0,2791.9,0.98831423]
[1645894871744,2.3924956,2792.1,2791.9,0.98831423]
[1645894871945,0.516,2792.0,2791.9,0.98831423]
[1645894872145,0.516,2792.0,2791.8,0.00497229]
[1645894872345,0.516,2792.0,2791.9,0.98831423]
[1645894872545,0.516,2792.0,2791.9,0.99328647]
[1645894873145,1.4123,2792.0,2791.9,0.99328647]
[1645894873345,1.4123,2792.0,2791.9,0.98831423]
[1645894874351,0.90322898,2792.0,2791.9,0.98831423]
[1645894874558,2.65678599,2792.2,2791.9,0.98831423]
[1645894874559,0.27795478,2792.2,2791.9,0.98831423]
[1645894874751,0.27795478,2792.2,2792.0,1.52565933]
[1645894875990,0.27795478,2792.2,2792.0,1.5306293]
[1645894876992,0.27795478,2792.2,2792.0,1.52565933]
[1645894877397,0.27795478,2792.2,2792.0,1.5306293]
[1645894877595,0.27795478,2792.2,2792.1,0.98831423]
[1645894877793,0.22795478,2792.2,2792.1,0.98831423]
[1645894885800,0.30413302,2792.2,2792.1,0.98831423]
[1645894886940,0.32925268,2792.2,2792.1,0.98831423]
[1645894887141,0.62925268,2792.2,2792.1,0.98831423]
[1645894887945,0.70543092,2792.2,2792.1,0.98831423]